Workbook

Sheet Gráfico
A1: Cuadro Resumen
A2: Periodo | B2: =VLOOKUP(B3,Datos!H5:I22,2) -> 2012 - 2º Semestre
A3: Código: | B3: 18
A4: Hotel | B4: =Datos[[#Headers],[Tasa de Ocupación]] -> Tasa de Ocupación | C4: =Datos[[#Headers],[Margen Bruto]] -> Margen Bruto | D4: =Datos[[#Headers],[Facturación]] -> Facturación
A6: Hotel 1 | B6: =VLOOKUP(CONCATENATE(Periodo_Base,"-",A6),Datos[],4,FALSE) -> 74.9 | C6: =VLOOKUP(CONCATENATE(Periodo_Base,"-",A6),Datos[],5,FALSE) -> 2.1 | D6: =VLOOKUP(CONCATENATE(Periodo_Base,"-",A6),Datos[],6,FALSE) -> 105280515
A7: Hotel 2 | B7: =VLOOKUP(CONCATENATE(Periodo_Base,"-",A7),Datos[],4,FALSE) -> 80.9 | C7: =VLOOKUP(CONCATENATE(Periodo_Base,"-",A7),Datos[],5,FALSE) -> 1.4 | D7: =VLOOKUP(CONCATENATE(Periodo_Base,"-",A7),Datos[],6,FALSE) -> 44878945
A8: Hotel 3 | B8: =VLOOKUP(CONCATENATE(Periodo_Base,"-",A8),Datos[],4,FALSE) -> 80.96 | C8: =VLOOKUP(CONCATENATE(Periodo_Base,"-",A8),Datos[],5,FALSE) -> 3.25 | D8: =VLOOKUP(CONCATENATE(Periodo_Base,"-",A8),Datos[],6,FALSE) -> 4122450
A9: Hotel 4 | B9: =VLOOKUP(CONCATENATE(Periodo_Base,"-",A9),Datos[],4,FALSE) -> 82.39 | C9: =VLOOKUP(CONCATENATE(Periodo_Base,"-",A9),Datos[],5,FALSE) -> 4.25 | D9: =VLOOKUP(CONCATENATE(Periodo_Base,"-",A9),Datos[],6,FALSE) -> 15792077.25

Sheet Datos
A1: Grupo Turístico Vacaciones SARS
A2: Código | B2: Periodo | C2: Hotel | D2: Tasa de Ocupación | E2: Margen Bruto | F2: Facturación | H2: Periodo de Valores Unicos
A3: =CONCATENATE(B3,"-",C3) -> 2004 - 1º Semestre-Hotel 1 | B3: 2004 - 1º Semestre | C3: Hotel 1 | D3: 70.9 | E3: 3.4 | F3: 83226000 | H3: Orden | I3: Periodos Valores Unicos
A4: 2004 - 2º Semestre-Hotel 1 | B4: 2004 - 2º Semestre | C4: Hotel 1 | D4: 71.4 | E4: 3.3 | F4: 84793155
A5: 2005 - 1º Semestre-Hotel 1 | B5: 2005 - 1º Semestre | C5: Hotel 1 | D5: 71.7 | E5: 3.2 | F5: 86369232 | H5: 1 | I5: 2004 - 1º Semestre
A6: 2005 - 2º Semestre-Hotel 1 | B6: 2005 - 2º Semestre | C6: Hotel 1 | D6: 72 | E6: 3.2 | F6: 87953642 | H6: 2 | I6: 2004 - 2º Semestre
A7: 2006 - 1º Semestre-Hotel 1 | B7: 2006 - 1º Semestre | C7: Hotel 1 | D7: 72.2 | E7: 3.1 | F7: 89545773 | H7: 3 | I7: 2005 - 1º Semestre
A8: 2006 - 2º Semestre-Hotel 1 | B8: 2006 - 2º Semestre | C8: Hotel 1 | D8: 72.4 | E8: 3 | F8: 91145000 | H8: 4 | I8: 2005 - 2º Semestre
A9: 2007 - 1º Semestre-Hotel 1 | B9: 2007 - 1º Semestre | C9: Hotel 1 | D9: 72.8 | E9: 2.9 | F9: 92570752 | H9: 5 | I9: 2006 - 1º Semestre
A10: 2007 - 2º Semestre-Hotel 1 | B10: 2007 - 2º Semestre | C10: Hotel 1 | D10: 73.1 | E10: 2.8 | F10: 93926296 | H10: 6 | I10: 2006 - 2º Semestre
A11: 2008 - 1º Semestre-Hotel 1 | B11: 2008 - 1º Semestre | C11: Hotel 1 | D11: 73.4 | E11: 2.7 | F11: 95251064 | H11: 7 | I11: 2007 - 1º Semestre
A12: 2008- 2º Semestre-Hotel 1 | B12: 2008- 2º Semestre | C12: Hotel 1 | D12: 73.7 | E12: 2.7 | F12: 96584488 | H12: 8 | I12: 2007 - 2º Semestre
A13: 2009- 1º Semestre-Hotel 1 | B13: 2009- 1º Semestre | C13: Hotel 1 | D13: 74 | E13: 2.7 | F13: 97966000 | H13: 9 | I13: 2008 - 1º Semestre
A14: 2009 - 2º Semestre-Hotel 1 | B14: 2009 - 2º Semestre | C14: Hotel 1 | D14: 74.2 | E14: 2.6 | F14: 98994087 | H14: 10 | I14: 2008- 2º Semestre
A15: 2010 - 1º Semestre-Hotel 1 | B15: 2010 - 1º Semestre | C15: Hotel 1 | D15: 74.3 | E15: 2.5 | F15: 100002340 | H15: 11 | I15: 2009- 1º Semestre
A16: 2010 - 2º Semestre-Hotel 1 | B16: 2010 - 2º Semestre | C16: Hotel 1 | D16: 74.4 | E16: 2.4 | F16: 101020862 | H16: 12 | I16: 2009 - 2º Semestre
A17: 2011 - 1º Semestre-Hotel 1 | B17: 2011 - 1º Semestre | C17: Hotel 1 | D17: 74.4 | E17: 2.3 | F17: 102049758 | H17: 13 | I17: 2010 - 1º Semestre
A18: 2011 - 2º Semestre-Hotel 1 | B18: 2011 - 2º Semestre | C18: Hotel 1 | D18: 74.4 | E18: 2.2 | F18: 103089133 | H18: 14 | I18: 2010 - 2º Semestre
A19: 2012 - 1º Semestre-Hotel 1 | B19: 2012 - 1º Semestre | C19: Hotel 1 | D19: 74.5 | E19: 2.2 | F19: 104221361 | H19: 15 | I19: 2011 - 1º Semestre
A20: 2012 - 2º Semestre-Hotel 1 | B20: 2012 - 2º Semestre | C20: Hotel 1 | D20: 74.9 | E20: 2.1 | F20: 105280515 | H20: 16 | I20: 2011 - 2º Semestre
A21: 2004 - 1º Semestre-Hotel 2 | B21: 2004 - 1º Semestre | C21: Hotel 2 | D21: 76.8 | E21: 1.3 | F21: 38836000 | H21: 17 | I21: 2012 - 1º Semestre
A22: 2004 - 2º Semestre-Hotel 2 | B22: 2004 - 2º Semestre | C22: Hotel 2 | D22: 77 | E22: 1.3 | F22: 38939050 | H22: 18 | I22: 2012 - 2º Semestre
A23: 2005 - 1º Semestre-Hotel 2 | B23: 2005 - 1º Semestre | C23: Hotel 2 | D23: 77.4 | E23: 1.3 | F23: 39067750
A24: 2005 - 2º Semestre-Hotel 2 | B24: 2005 - 2º Semestre | C24: Hotel 2 | D24: 77.5 | E24: 1.3 | F24: 39189400
A25: 2006 - 1º Semestre-Hotel 2 | B25: 2006 - 1º Semestre | C25: Hotel 2 | D25: 77.9 | E25: 1.2 | F25: 39294950
A26: 2006 - 2º Semestre-Hotel 2 | B26: 2006 - 2º Semestre | C26: Hotel 2 | D26: 78 | E26: 1.2 | F26: 39387000
A27: 2007 - 1º Semestre-Hotel 2 | B27: 2007 - 1º Semestre | C27: Hotel 2 | D27: 78.1 | E27: 1.2 | F27: 39478150
A28: 2007 - 2º Semestre-Hotel 2 | B28: 2007 - 2º Semestre | C28: Hotel 2 | D28: 78.6 | E28: 1.2 | F28: 39582400
A29: 2008 - 1º Semestre-Hotel 2 | B29: 2008 - 1º Semestre | C29: Hotel 2 | D29: 78.7 | E29: 1.2 | F29: 39721100
A30: 2008- 2º Semestre-Hotel 2 | B30: 2008- 2º Semestre | C30: Hotel 2 | D30: 78.7 | E30: 1.2 | F30: 39926250
A31: 2009- 1º Semestre-Hotel 2 | B31: 2009- 1º Semestre | C31: Hotel 2 | D31: 79 | E31: 1.2 | F31: 40263200
A32: 2009 - 2º Semestre-Hotel 2 | B32: 2009 - 2º Semestre | C32: Hotel 2 | D32: 79 | E32: 1.3 | F32: 40720450
A33: 2010 - 1º Semestre-Hotel 2 | B33: 2010 - 1º Semestre | C33: Hotel 2 | D33: 79.2 | E33: 1.3 | F33: 41313950
A34: 2010 - 2º Semestre-Hotel 2 | B34: 2010 - 2º Semestre | C34: Hotel 2 | D34: 79.6 | E34: 1.3 | F34: 42004500
A35: =CONCATENATE(B35,"-",C35) -> 2011 - 1º Semestre-Hotel 2 | B35: 2011 - 1º Semestre | C35: Hotel 2 | D35: 80.1 | E35: 1.3 | F35: 42691650
A36: 2011 - 2º Semestre-Hotel 2 | B36: 2011 - 2º Semestre | C36: Hotel 2 | D36: 80.6 | E36: 1.4 | F36: 43398150
A37: 2012 - 1º Semestre-Hotel 2 | B37: 2012 - 1º Semestre | C37: Hotel 2 | D37: 80.8 | E37: 1.4 | F37: 44116441
A38: 2012 - 2º Semestre-Hotel 2 | B38: 2012 - 2º Semestre | C38: Hotel 2 | D38: 80.9 | E38: 1.4 | F38: 44878945
A39: 2004 - 1º Semestre-Hotel 3 | B39: 2004 - 1º Semestre | C39: Hotel 3 | D39: 78.32 | E39: 4.25 | F39: 2962500
A40: 2004 - 2º Semestre-Hotel 3 | B40: 2004 - 2º Semestre | C40: Hotel 3 | D40: 78.32 | E40: 4.25 | F40: 2962500
A41: 2005 - 1º Semestre-Hotel 3 | B41: 2005 - 1º Semestre | C41: Hotel 3 | D41: 78.87 | E41: 4.125 | F41: 3098850
A42: 2005 - 2º Semestre-Hotel 3 | B42: 2005 - 2º Semestre | C42: Hotel 3 | D42: 78.98 | E42: 3.75 | F42: 3168150
A43: 2006 - 1º Semestre-Hotel 3 | B43: 2006 - 1º Semestre | C43: Hotel 3 | D43: 79.31 | E43: 3.875 | F43: 3237450
A44: 2006 - 2º Semestre-Hotel 3 | B44: 2006 - 2º Semestre | C44: Hotel 3 | D44: 79.42 | E44: 3.875 | F44: 3306450
A45: 2007 - 1º Semestre-Hotel 3 | B45: 2007 - 1º Semestre | C45: Hotel 3 | D45: 79.64 | E45: 4 | F45: 3375300
A46: 2007 - 2º Semestre-Hotel 3 | B46: 2007 - 2º Semestre | C46: Hotel 3 | D46: 79.86 | E46: 3.75 | F46: 3443850
A47: 2008 - 1º Semestre-Hotel 3 | B47: 2008 - 1º Semestre | C47: Hotel 3 | D47: 79.97 | E47: 3.625 | F47: 3511950
A48: 2008- 2º Semestre-Hotel 3 | B48: 2008- 2º Semestre | C48: Hotel 3 | D48: 80.19 | E48: 3.625 | F48: 3580050
A49: 2009- 1º Semestre-Hotel 3 | B49: 2009- 1º Semestre | C49: Hotel 3 | D49: 80.63 | E49: 3.5 | F49: 3646650
A50: 2009 - 2º Semestre-Hotel 3 | B50: 2009 - 2º Semestre | C50: Hotel 3 | D50: 80.74 | E50: 3.5 | F50: 3714750
A51: 2010 - 1º Semestre-Hotel 3 | B51: 2010 - 1º Semestre | C51: Hotel 3 | D51: 80.96 | E51: 3.5 | F51: 3783000
A52: 2010 - 2º Semestre-Hotel 3 | B52: 2010 - 2º Semestre | C52: Hotel 3 | D52: 80.08 | E52: 3.375 | F52: 3851100
A53: 2011 - 1º Semestre-Hotel 3 | B53: 2011 - 1º Semestre | C53: Hotel 3 | D53: 80.3 | E53: 3.375 | F53: 3919050
A54: 2011 - 2º Semestre-Hotel 3 | B54: 2011 - 2º Semestre | C54: Hotel 3 | D54: 80.52 | E54: 3.375 | F54: 3986550
A55: 2012 - 1º Semestre-Hotel 3 | B55: 2012 - 1º Semestre | C55: Hotel 3 | D55: 80.74 | E55: 3.25 | F55: 4054650
A56: 2012 - 2º Semestre-Hotel 3 | B56: 2012 - 2º Semestre | C56: Hotel 3 | D56: 80.96 | E56: 3.25 | F56: 4122450
A57: 2004 - 1º Semestre-Hotel 4 | B57: 2004 - 1º Semestre | C57: Hotel 4 | D57: 77.99 | E57: 2.625 | F57: 12483900
A58: 2004 - 2º Semestre-Hotel 4 | B58: 2004 - 2º Semestre | C58: Hotel 4 | D58: 78.54 | E58: 2.75 | F58: 12718973.25
A59: 2005 - 1º Semestre-Hotel 4 | B59: 2005 - 1º Semestre | C59: Hotel 4 | D59: 78.87 | E59: 2.75 | F59: 12955384.8
A60: 2005 - 2º Semestre-Hotel 4 | B60: 2005 - 2º Semestre | C60: Hotel 4 | D60: 79.2 | E60: 2.875 | F60: 13193046.3
A61: 2006 - 1º Semestre-Hotel 4 | B61: 2006 - 1º Semestre | C61: Hotel 4 | D61: 79.42 | E61: 3 | F61: 13431865.95
A62: 2006 - 2º Semestre-Hotel 4 | B62: 2006 - 2º Semestre | C62: Hotel 4 | D62: 79.64 | E62: 3.125 | F62: 13671750
A63: 2007 - 1º Semestre-Hotel 4 | B63: 2007 - 1º Semestre | C63: Hotel 4 | D63: 80.08 | E63: 3.25 | F63: 13885612.8
A64: 2007 - 2º Semestre-Hotel 4 | B64: 2007 - 2º Semestre | C64: Hotel 4 | D64: 80.41 | E64: 3.375 | F64: 14088944.4
A65: 2008 - 1º Semestre-Hotel 4 | B65: 2008 - 1º Semestre | C65: Hotel 4 | D65: 80.74 | E65: 3.375 | F65: 14287659.6
A66: 2008- 2º Semestre-Hotel 4 | B66: 2008- 2º Semestre | C66: Hotel 4 | D66: 81.07 | E66: 3.375 | F66: 14487673.2
A67: =CONCATENATE(B67,"-",C67) -> 2009- 1º Semestre-Hotel 4 | B67: 2009- 1º Semestre | C67: Hotel 4 | D67: 81.4 | E67: 3.5 | F67: 14694900
A68: 2009 - 2º Semestre-Hotel 4 | B68: 2009 - 2º Semestre | C68: Hotel 4 | D68: 81.62 | E68: 3.625 | F68: 14849113.05
A69: 2010 - 1º Semestre-Hotel 4 | B69: 2010 - 1º Semestre | C69: Hotel 4 | D69: 81.73 | E69: 3.75 | F69: 15000351
A70: 2010 - 2º Semestre-Hotel 4 | B70: 2010 - 2º Semestre | C70: Hotel 4 | D70: 81.84 | E70: 3.875 | F70: 15153129.3
A71: 2011 - 1º Semestre-Hotel 4 | B71: 2011 - 1º Semestre | C71: Hotel 4 | D71: 81.84 | E71: 4 | F71: 15307463.7
A72: 2011 - 2º Semestre-Hotel 4 | B72: 2011 - 2º Semestre | C72: Hotel 4 | D72: 81.84 | E72: 4 | F72: 15463369.95
A73: 2012 - 1º Semestre-Hotel 4 | B73: 2012 - 1º Semestre | C73: Hotel 4 | D73: 81.95 | E73: 4.125 | F73: 15633204.15
A74: 2012 - 2º Semestre-Hotel 4 | B74: 2012 - 2º Semestre | C74: Hotel 4 | D74: 82.39 | E74: 4.25 | F74: 15792077.25

Sheet Datos originales
A1: Grupo Turístico Vacaciones SARS
A2: Periodo | B2: Hotel | C2: Tasa de Ocupación | D2: Margen Bruto | E2: Facturación
A3: 2004 - 1º Semestre | B3: Hotel 1 | C3: 70.9 | D3: 3.4 | E3: 83226000
A4: 2004 - 2º Semestre | B4: Hotel 1 | C4: 71.4 | D4: 3.3 | E4: 84793155
A5: 2005 - 1º Semestre | B5: Hotel 1 | C5: 71.7 | D5: 3.2 | E5: 86369232
A6: 2005 - 2º Semestre | B6: Hotel 1 | C6: 72 | D6: 3.2 | E6: 87953642
A7: 2006 - 1º Semestre | B7: Hotel 1 | C7: 72.2 | D7: 3.1 | E7: 89545773
A8: 2006 - 2º Semestre | B8: Hotel 1 | C8: 72.4 | D8: 3 | E8: 91145000
A9: 2007 - 1º Semestre | B9: Hotel 1 | C9: 72.8 | D9: 2.9 | E9: 92570752
A10: 2007 - 2º Semestre | B10: Hotel 1 | C10: 73.1 | D10: 2.8 | E10: 93926296
A11: 2008 - 1º Semestre | B11: Hotel 1 | C11: 73.4 | D11: 2.7 | E11: 95251064
A12: 2008- 2º Semestre | B12: Hotel 1 | C12: 73.7 | D12: 2.7 | E12: 96584488
A13: 2009- 1º Semestre | B13: Hotel 1 | C13: 74 | D13: 2.7 | E13: 97966000
A14: 2009 - 2º Semestre | B14: Hotel 1 | C14: 74.2 | D14: 2.6 | E14: 98994087
A15: 2010 - 1º Semestre | B15: Hotel 1 | C15: 74.3 | D15: 2.5 | E15: 100002340
A16: 2010 - 2º Semestre | B16: Hotel 1 | C16: 74.4 | D16: 2.4 | E16: 101020862
A17: 2011 - 1º Semestre | B17: Hotel 1 | C17: 74.4 | D17: 2.3 | E17: 102049758
A18: 2011 - 2º Semestre | B18: Hotel 1 | C18: 74.4 | D18: 2.2 | E18: 103089133
A19: 2012 - 1º Semestre | B19: Hotel 1 | C19: 74.5 | D19: 2.2 | E19: 104221361
A20: 2012 - 2º Semestre | B20: Hotel 1 | C20: 74.9 | D20: 2.1 | E20: 105280515
A21: 2004 - 1º Semestre | B21: Hotel 2 | C21: 76.8 | D21: 1.3 | E21: 38836000
A22: 2004 - 2º Semestre | B22: Hotel 2 | C22: 77 | D22: 1.3 | E22: 38939050
A23: 2005 - 1º Semestre | B23: Hotel 2 | C23: 77.4 | D23: 1.3 | E23: 39067750
A24: 2005 - 2º Semestre | B24: Hotel 2 | C24: 77.5 | D24: 1.3 | E24: 39189400
A25: 2006 - 1º Semestre | B25: Hotel 2 | C25: 77.9 | D25: 1.2 | E25: 39294950
A26: 2006 - 2º Semestre | B26: Hotel 2 | C26: 78 | D26: 1.2 | E26: 39387000
A27: 2007 - 1º Semestre | B27: Hotel 2 | C27: 78.1 | D27: 1.2 | E27: 39478150
A28: 2007 - 2º Semestre | B28: Hotel 2 | C28: 78.6 | D28: 1.2 | E28: 39582400
A29: 2008 - 1º Semestre | B29: Hotel 2 | C29: 78.7 | D29: 1.2 | E29: 39721100
A30: 2008- 2º Semestre | B30: Hotel 2 | C30: 78.7 | D30: 1.2 | E30: 39926250
A31: 2009- 1º Semestre | B31: Hotel 2 | C31: 79 | D31: 1.2 | E31: 40263200
A32: 2009 - 2º Semestre | B32: Hotel 2 | C32: 79 | D32: 1.3 | E32: 40720450
A33: 2010 - 1º Semestre | B33: Hotel 2 | C33: 79.2 | D33: 1.3 | E33: 41313950
A34: 2010 - 2º Semestre | B34: Hotel 2 | C34: 79.6 | D34: 1.3 | E34: 42004500
A35: 2011 - 1º Semestre | B35: Hotel 2 | C35: 80.1 | D35: 1.3 | E35: 42691650
A36: 2011 - 2º Semestre | B36: Hotel 2 | C36: 80.6 | D36: 1.4 | E36: 43398150
A37: 2012 - 1º Semestre | B37: Hotel 2 | C37: 80.8 | D37: 1.4 | E37: 44116441
A38: 2012 - 2º Semestre | B38: Hotel 2 | C38: 80.9 | D38: 1.4 | E38: 44878945
A39: 2004 - 1º Semestre | B39: Hotel 3 | C39: 78.32 | D39: 4.25 | E39: 2962500
A40: 2004 - 2º Semestre | B40: Hotel 3 | C40: 78.32 | D40: 4.25 | E40: 2962500
A41: 2005 - 1º Semestre | B41: Hotel 3 | C41: 78.87 | D41: 4.125 | E41: 3098850
A42: 2005 - 2º Semestre | B42: Hotel 3 | C42: 78.98 | D42: 3.75 | E42: 3168150
A43: 2006 - 1º Semestre | B43: Hotel 3 | C43: 79.31 | D43: 3.875 | E43: 3237450
A44: 2006 - 2º Semestre | B44: Hotel 3 | C44: 79.42 | D44: 3.875 | E44: 3306450
A45: 2007 - 1º Semestre | B45: Hotel 3 | C45: 79.64 | D45: 4 | E45: 3375300
A46: 2007 - 2º Semestre | B46: Hotel 3 | C46: 79.86 | D46: 3.75 | E46: 3443850
A47: 2008 - 1º Semestre | B47: Hotel 3 | C47: 79.97 | D47: 3.625 | E47: 3511950
A48: 2008- 2º Semestre | B48: Hotel 3 | C48: 80.19 | D48: 3.625 | E48: 3580050
A49: 2009- 1º Semestre | B49: Hotel 3 | C49: 80.63 | D49: 3.5 | E49: 3646650
A50: 2009 - 2º Semestre | B50: Hotel 3 | C50: 80.74 | D50: 3.5 | E50: 3714750
A51: 2010 - 1º Semestre | B51: Hotel 3 | C51: 80.96 | D51: 3.5 | E51: 3783000
A52: 2010 - 2º Semestre | B52: Hotel 3 | C52: 80.08 | D52: 3.375 | E52: 3851100
A53: 2011 - 1º Semestre | B53: Hotel 3 | C53: 80.3 | D53: 3.375 | E53: 3919050
A54: 2011 - 2º Semestre | B54: Hotel 3 | C54: 80.52 | D54: 3.375 | E54: 3986550
A55: 2012 - 1º Semestre | B55: Hotel 3 | C55: 80.74 | D55: 3.25 | E55: 4054650
A56: 2012 - 2º Semestre | B56: Hotel 3 | C56: 80.96 | D56: 3.25 | E56: 4122450
A57: 2004 - 1º Semestre | B57: Hotel 4 | C57: 77.99 | D57: 2.625 | E57: 12483900
A58: 2004 - 2º Semestre | B58: Hotel 4 | C58: 78.54 | D58: 2.75 | E58: 12718973.25
A59: 2005 - 1º Semestre | B59: Hotel 4 | C59: 78.87 | D59: 2.75 | E59: 12955384.8
A60: 2005 - 2º Semestre | B60: Hotel 4 | C60: 79.2 | D60: 2.875 | E60: 13193046.3
A61: 2006 - 1º Semestre | B61: Hotel 4 | C61: 79.42 | D61: 3 | E61: 13431865.95
A62: 2006 - 2º Semestre | B62: Hotel 4 | C62: 79.64 | D62: 3.125 | E62: 13671750
A63: 2007 - 1º Semestre | B63: Hotel 4 | C63: 80.08 | D63: 3.25 | E63: 13885612.8
A64: 2007 - 2º Semestre | B64: Hotel 4 | C64: 80.41 | D64: 3.375 | E64: 14088944.4
A65: 2008 - 1º Semestre | B65: Hotel 4 | C65: 80.74 | D65: 3.375 | E65: 14287659.6
A66: 2008- 2º Semestre | B66: Hotel 4 | C66: 81.07 | D66: 3.375 | E66: 14487673.2
A67: 2009- 1º Semestre | B67: Hotel 4 | C67: 81.4 | D67: 3.5 | E67: 14694900
A68: 2009 - 2º Semestre | B68: Hotel 4 | C68: 81.62 | D68: 3.625 | E68: 14849113.05
A69: 2010 - 1º Semestre | B69: Hotel 4 | C69: 81.73 | D69: 3.75 | E69: 15000351
A70: 2010 - 2º Semestre | B70: Hotel 4 | C70: 81.84 | D70: 3.875 | E70: 15153129.3
A71: 2011 - 1º Semestre | B71: Hotel 4 | C71: 81.84 | D71: 4 | E71: 15307463.7
A72: 2011 - 2º Semestre | B72: Hotel 4 | C72: 81.84 | D72: 4 | E72: 15463369.95
A73: 2012 - 1º Semestre | B73: Hotel 4 | C73: 81.95 | D73: 4.125 | E73: 15633204.15
A74: 2012 - 2º Semestre | B74: Hotel 4 | C74: 82.39 | D74: 4.25 | E74: 15792077.25
